bitfinex-derivatives/quotes_BTCF0:USTF0_20241117
["timestamp","ask_amount","ask_price","bid_price","bid_amount"]
[1731849235791,0.25143504,90961.0,90960.0,0.05840941]
[1731849236097,0.05347988,90961.0,90960.0,0.05840941]
[1731849236289,0.19795516,90962.0,90961.0,0.054971]
[1731849236493,0.19795516,90962.0,90961.0,0.05840941]
[1731849238503,0.1982874,90962.0,90961.0,0.00343841]
[1731849238798,0.14480831,90962.0,90961.0,0.05840941]
[1731849241193,0.14480962,90963.0,90962.0,0.05497]
[1731849241398,0.19828871,90963.0,90962.0,0.05840841]
[1731849241599,0.19828871,90963.0,90962.0,0.05497]
[1731849242592,0.19828871,90963.0,90962.0,0.05840838]
[1731849243599,0.19828871,90963.0,90962.0,0.05497]
[1731849246595,0.05347909,90963.0,90959.0,0.05567904]
[1731849246902,0.05347909,90963.0,90961.0,0.054971]
[1731849246903,0.19798856,90962.0,90961.0,0.054971]
[1731849248899,0.05347909,90962.0,90961.0,0.054971]
[1731849249093,0.05347909,90962.0,90958.0,0.5584885]
[1731849249403,0.05347909,90961.0,90958.0,0.5594485]
[1731849249600,0.05347783,90960.0,90959.0,0.054972]
[1731849250004,0.05347783,90960.0,90958.0,0.3608]
[1731849250005,0.19797187,90962.0,90961.0,0.054971]
[1731849250507,0.19797187,90963.0,90958.0,0.3608]
[1731849250808,0.19797187,90963.0,90962.0,0.05497]
[1731849251107,0.19797187,90963.0,90962.0,0.0584083]
[1731849251508,0.25319854,90966.0,90965.0,0.054968]
[1731849251698,0.0535613,90966.0,90965.0,0.054968]
[1731849252204,8.735e-05,90966.0,90965.0,0.054968]
[1731849252801,0.19803672,90966.0,90965.0,0.054968]
[1731849253008,0.25151067,90966.0,90965.0,0.054968]
[1731849253198,0.0535613,90966.0,90965.0,0.054968]
[1731849253396,8.735e-05,90966.0,90965.0,0.054968]
[1731849254103,0.05356125,90966.0,90965.0,0.054968]
[1731849254304,8.735e-05,90966.0,90965.0,0.054968]
[1731849256011,0.05356048,90966.0,90965.0,0.054968]
[1731849256212,8.735e-05,90966.0,90965.0,0.054968]
[1731849256509,8.735e-05,90966.0,90965.0,0.415768]
[1731849256711,0.05356082,90966.0,90965.0,0.415768]
[1731849257605,0.05356089,90966.0,90965.0,0.415768]
[1731849257801,0.05356076,90966.0,90965.0,0.415768]
[1731849258108,8.735e-05,90966.0,90965.0,0.415768]
[1731849258307,0.16490673,90966.0,90965.0,0.415768]
[1731849258811,8.735e-05,90966.0,90965.0,0.415768]
[1731849259611,0.16489934,90966.0,90965.0,0.415768]
[1731849259904,8.735e-05,90966.0,90965.0,0.415768]
[1731849261096,0.16488581,90966.0,90965.0,0.415768]
[1731849261301,0.38336004,90966.0,90957.0,0.36176]
[1731849261502,0.054976,90952.0,90951.0,0.19765702]
[1731849261812,0.054977,90951.0,90948.0,0.3608]
[1731849262114,0.40305278,90951.0,90948.0,0.3608]
[1731849262415,0.10845823,90950.0,90949.0,0.054978]
[1731849262715,0.05348023,90950.0,90949.0,0.054978]
[1731849264804,0.05348023,90950.0,90948.0,0.3608]
[1731849265007,0.05348023,90950.0,90949.0,0.054978]
[1731849266210,0.15283188,90951.0,90950.0,0.054978]
[1731849266605,0.20631576,90951.0,90950.0,0.054978]
[1731849268010,0.20631576,90951.0,90947.0,0.3608]
[1731849268218,0.054979,90948.0,90947.0,0.3608]
[1731849268415,0.10846288,90948.0,90947.0,0.415779]
[1731849268611,0.18673547,90948.0,90947.0,0.415779]
[1731849269823,0.054979,90948.0,90947.0,0.415779]
[1731849270517,0.15283188,90951.0,90950.0,0.054978]
[1731849270706,0.11983188,90951.0,90950.0,0.054978]
[1731849273208,0.11983188,90951.0,90945.0,0.05498]
[1731849273529,0.16469559,90950.0,90940.0,0.00012709]
[1731849273721,0.054983,90941.0,90940.0,0.00012709]
[1731849274823,0.054983,90941.0,90940.0,0.05511109]
[1731849275614,0.054983,90941.0,90940.0,0.00012709]
[1731849276716,0.10847686,90941.0,90940.0,0.00012709]
[1731849277725,0.16452411,90941.0,90940.0,0.05511109]
[1731849277916,0.054983,90941.0,90940.0,0.05511109]
[1731849281414,0.21950711,90941.0,90940.0,0.05511109]
[1731849281619,0.054983,90941.0,90940.0,0.05511109]
[1731849283213,0.21950711,90941.0,90940.0,0.05511109]
[1731849283718,0.054983,90941.0,90940.0,0.05511109]
[1731849285913,0.054983,90941.0,90940.0,0.05855018]
[1731849286119,0.054983,90941.0,90940.0,0.41935018]
[1731849287316,0.054983,90941.0,90940.0,0.41935016]
[1731849288326,0.16452411,90945.0,90940.0,0.36436616]
[1731849288629,0.13166047,90943.0,90941.0,0.00343907]
[1731849288839,0.13166047,90943.0,90940.0,0.36092709]
[1731849288840,0.13166047,90944.0,90943.0,0.054982]
[1731849289026,0.13166047,90945.0,90944.0,0.054981]
[1731849289223,0.13166047,90948.0,90945.0,0.054981]
[1731849289427,0.16452411,90956.0,90946.0,0.00343907]
[1731849289624,0.16452411,90957.0,90956.0,0.054974]
[1731849289829,0.16452411,90959.0,90958.0,0.054973]
[1731849290132,0.19765275,90964.0,90962.0,0.05497]
[1731849290333,0.2196206,90963.0,90962.0,0.05497]
[1731849290527,0.2196206,90963.0,90962.0,0.0584083]
[1731849290735,0.2196206,90963.0,90962.0,0.05497]
[1731849291031,0.05497,90963.0,90962.0,0.0584083]
[1731849291634,0.05497,90962.0,90941.0,0.25264002]
[1731849291928,0.05497,90962.0,90941.0,0.054983]
[1731849291929,0.054982,90942.0,90941.0,0.054983]
[1731849292128,0.10846092,90942.0,90941.0,0.054983]
[1731849292328,0.10846857,90942.0,90941.0,0.054983]
[1731849294234,0.054983,90941.0,90939.0,0.3608]
[1731849294533,0.10846957,90941.0,90939.0,0.3608]
[1731849294733,0.28414252,90941.0,90939.0,0.3608]
[1731849294927,0.33766774,90941.0,90939.0,0.3608]
[1731849295132,0.13996957,90941.0,90939.0,0.3608]
[1731849295530,0.13996957,90941.0,90934.0,0.054987]
[1731849297533,0.28417273,90941.0,90934.0,0.054987]
[1731849297734,0.3376593,90941.0,90934.0,0.054987]
[1731849297943,0.13996957,90941.0,90935.0,0.054986]
[1731849299339,0.086483,90941.0,90935.0,0.054986]
[1731849299539,0.13997617,90941.0,90935.0,0.054986]
[1731849300435,0.086483,90941.0,90932.0,0.3608]
[1731849300741,0.1399758,90941.0,90932.0,0.415788]
[1731849301042,0.416363,90941.0,90931.0,0.19765702]
[1731849301240,0.054992,90926.0,90924.0,0.3608]
[1731849301939,0.054992,90926.0,90924.0,0.415793]
[1731849302144,0.054992,90926.0,90924.0,0.3608]
[1731849302947,0.033,90925.0,90924.0,0.3608]
[1731849303444,0.36296,90925.0,90917.0,0.00012641]
[1731849303634,0.3608,90921.0,90903.0,0.02201109]
[1731849303836,0.055005,90904.0,90903.0,0.02201109]
[1731849304037,0.30338018,90904.0,90903.0,0.02201109]
[1731849304237,0.88299898,90904.0,90884.0,0.3608]
[1731849304449,0.055017,90886.0,90884.0,0.3608]
[1731849305232,0.30334852,90895.0,90884.0,0.3608]
[1731849305435,0.055012,90894.0,90887.0,0.055015]
[1731849305640,0.08364,90893.0,90887.0,0.055015]
[1731849306031,0.138652,90893.0,90887.0,0.055015]
[1731849306236,0.055013,90891.0,90887.0,0.055015]
[1731849306436,0.055013,90891.0,90884.0,0.3608]
[1731849306437,0.055013,90891.0,90888.0,0.055015]
[1731849306645,0.08364,90890.0,90884.0,0.3608]
[1731849306842,0.055015,90889.0,90884.0,0.3608]
[1731849307752,0.055023,90874.0,90873.0,0.36090147]
[1731849308647,0.055019,90882.0,90873.0,0.00010147]
[1731849308947,0.0836,90881.0,90876.0,0.055022]
[1731849309445,0.055019,90882.0,90878.0,0.055021]
[1731849309651,0.055015,90889.0,90878.0,0.3608]
[1731849309949,0.0836,90888.0,90884.0,0.055017]
[1731849310344,0.055017,90885.0,90877.0,0.055021]
[1731849310749,0.0836,90888.0,90873.0,0.00010147]
[1731849310952,0.0311,90884.0,90873.0,0.00010147]
[1731849311251,0.08364,90883.0,90873.0,0.00010147]
[1731849311544,0.11474,90884.0,90880.0,0.05502]
[1731849312545,0.11474,90884.0,90882.0,0.055018]
[1731849313047,0.0311,90884.0,90882.0,0.055018]
[1731849315646,0.086118,90884.0,90878.0,0.3608]
[1731849315948,0.086118,90884.0,90878.0,0.055021]
[1731849316542,0.086118,90884.0,90879.0,0.05502]
[1731849316740,0.086118,90884.0,90873.0,0.00010147]
[1731849317048,0.086118,90884.0,90880.0,0.055019]
[1731849317636,0.0311,90884.0,90880.0,0.055019]
[1731849317846,0.05502,90880.0,90874.0,0.055023]
[1731849318043,0.05502,90880.0,90876.0,0.055022]
[1731849318238,0.05502,90880.0,90877.0,0.055022]
[1731849318442,0.05502,90880.0,90878.0,0.055021]
[1731849318645,0.0329,90879.0,90873.0,0.00010147]
[1731849318949,0.055022,90877.0,90873.0,0.00010147]
[1731849319147,0.36136001,90888.0,90874.0,0.41376]
[1731849319353,0.0051,90901.0,90900.0,0.055008]
[1731849319547,0.054459,90908.0,90894.0,0.3608]
[1731849319754,0.055009,90898.0,90890.0,0.08364]
[1731849319946,0.055009,90898.0,90893.0,0.055012]
[1731849320538,0.055011,90896.0,90893.0,0.055012]
[1731849321854,0.3608,90899.0,90887.0,0.055015]
[1731849322349,0.055014,90891.0,90887.0,0.055015]
[1731849322849,0.055014,90891.0,90889.0,0.055014]
[1731849325859,0.0332,90898.0,90875.0,0.3608]
[1731849326055,0.0314,90890.0,90875.0,0.3608]
[1731849326249,0.055018,90884.0,90881.0,0.055019]
[1731849326657,0.0314,90890.0,90875.0,0.3608]
[1731849326658,0.055015,90889.0,90876.0,0.055022]
[1731849326855,0.3922,90890.0,90876.0,0.055022]
[1731849326856,0.055021,90879.0,90876.0,0.055022]
[1731849327258,0.031,90883.0,90876.0,0.055022]
[1731849327454,0.055023,90874.0,90873.0,0.00010147]
[1731849329348,0.05502,90880.0,90876.0,0.055022]
[1731849329544,0.085321,90879.0,90876.0,0.055022]
[1731849330258,0.055021,90878.0,90876.0,0.055022]
[1731849331860,0.055023,90874.0,90873.0,0.00010147]
[1731849332558,0.10855479,90874.0,90873.0,0.00010147]
[1731849333061,0.10855479,90874.0,90873.0,1.518e-05]
[1731849333572,0.055023,90874.0,90873.0,1.518e-05]
[1731849333762,0.25239771,90874.0,90873.0,1.518e-05]
[1731849334148,0.58251771,90874.0,90873.0,1.518e-05]
[1731849334652,0.055036,90853.0,90851.0,0.055037]
[1731849334851,0.08604139,90852.0,90851.0,0.055037]
[1731849335757,0.0325,90852.0,90851.0,0.055037]
[1731849336258,0.05354223,90852.0,90843.0,0.055042]
[1731849336454,0.16450098,90854.0,90843.0,0.055042]
[1731849336657,0.16450098,90855.0,90854.0,0.055036]
[1731849336859,0.16450098,90865.0,90852.0,0.055037]
[1731849337167,0.16450098,90867.0,90860.0,0.3608]
[1731849337467,0.16450098,90867.0,90866.0,0.055028]
[1731849337468,0.21952898,90867.0,90866.0,0.055028]
[1731849337651,0.085028,90867.0,90866.0,0.055028]
[1731849338259,0.24952898,90867.0,90866.0,0.055028]
[1731849338446,0.085028,90867.0,90866.0,0.055028]
[1731849338960,0.03,90867.0,90858.0,0.055033]
[1731849339164,0.16439963,90866.0,90858.0,0.055033]
[1731849339458,0.055032,90860.0,90858.0,0.055033]
[1731849341165,0.055032,90860.0,90859.0,0.055033]
[1731849342269,0.08364,90864.0,90838.0,0.00165055]
[1731849342270,0.3608,90861.0,90838.0,0.00165055]
[1731849342474,0.055045,90839.0,90838.0,0.00165055]
[1731849342672,0.08364,90849.0,90837.0,0.00013554]
[1731849342857,0.055041,90845.0,90844.0,0.055041]
[1731849343152,0.0312,90848.0,90837.0,0.00013554]
[1731849343351,0.086239,90848.0,90846.0,0.05504]
[1731849343563,0.086239,90848.0,90847.0,0.05504]
[1731849344450,0.0312,90848.0,90847.0,0.05504]
[1731849345266,0.055034,90857.0,90843.0,0.3608]
[1731849345464,0.0308,90862.0,90851.0,0.3608]
[1731849345657,0.11444,90862.0,90851.0,0.3608]
[1731849345968,0.055032,90860.0,90857.0,0.055034]
[1731849346162,0.055032,90860.0,90858.0,0.055033]
[1731849346757,0.0308,90862.0,90861.0,0.055031]
[1731849348574,0.0308,90862.0,90856.0,0.055034]
[1731849348967,0.055034,90858.0,90844.0,0.0636]
[1731849349166,0.055041,90846.0,90844.0,0.055041]
[1731849350471,0.055037,90852.0,90848.0,0.055039]
[1731849350662,0.055038,90851.0,90848.0,0.055039]
[1731849350864,0.055038,90850.0,90848.0,0.055039]
[1731849351059,0.1313284,90857.0,90843.0,0.3608]
[1731849351263,0.05504,90846.0,90843.0,0.3608]
[1731849351468,0.05504,90846.0,90844.0,0.055041]
[1731849355667,0.1863684,90846.0,90844.0,0.055041]
[1731849355964,0.055044,90840.0,90839.0,0.00165128]
[1731849358673,0.385285,90839.0,90814.0,0.26368624]
[1731849358867,0.385285,90839.0,90815.0,0.00116]
[1731849358868,0.055058,90817.0,90815.0,0.00116]
[1731849359067,0.08368,90825.0,90812.0,0.26368624]
[1731849359272,0.055057,90819.0,90818.0,0.19767259]
[1731849359471,0.055057,90819.0,90806.0,0.0012]
[1731849359472,0.08368,90827.0,90817.0,0.19766461]
[1731849359782,0.03130992,90826.0,90815.0,0.25273242]
[1731849360076,0.055059,90815.0,90814.0,0.19767342]
[1731849360278,0.3608,90824.0,90811.0,0.19767342]
[1731849360279,0.05506,90813.0,90811.0,0.19767342]
[1731849360479,0.08368,90815.0,90811.0,0.1977373]
[1731849360790,0.055061,90812.0,90811.0,0.1977333]
[1731849361080,0.055061,90812.0,90810.0,0.1977333]
[1731849361278,0.055062,90810.0,90809.0,0.1977333]
[1731849361690,0.055062,90810.0,90800.0,0.42943636]
[1731849361691,0.055062,90810.0,90808.0,0.1977333]
[1731849361978,0.0324,90814.0,90809.0,0.1977106]
[1731849362278,0.055059,90817.0,90815.0,0.055059]
[1731849362479,0.08368,90818.0,90806.0,0.3608]
[1731849362779,0.055061,90813.0,90811.0,0.055061]
[1731849363681,0.055063,90809.0,90808.0,0.19764805]
[1731849363871,0.055063,90809.0,90805.0,0.055065]
[1731849363872,0.055063,90809.0,90805.0,0.25271305]
[1731849364078,0.08368,90811.0,90804.0,0.19764805]
[1731849364282,0.05506,90814.0,90813.0,0.05506]
[1731849364487,0.13874,90814.0,90813.0,0.05506]
[1731849365182,0.05441662,90822.0,90808.0,0.055063]
[1731849365380,0.055062,90810.0,90808.0,0.055063]
[1731849365879,0.49238549,90824.0,90800.0,0.1]
[1731849365880,0.055059,90816.0,90800.0,0.29764805]
[1731849366086,0.08368,90815.0,90806.0,0.3608]
[1731849366288,0.08368,90814.0,90812.0,0.055061]
[1731849366975,0.13874,90814.0,90812.0,0.055061]
[1731849367172,0.05506,90814.0,90812.0,0.055061]
[1731849367579,0.13137797,90821.0,90806.0,0.3608]
[1731849367775,0.13137797,90822.0,90817.0,0.3608]
[1731849367975,0.13193798,90824.0,90823.0,0.055054]
[1731849368177,0.00056001,90824.0,90823.0,0.055054]
[1731849368379,0.13193798,90824.0,90823.0,0.055054]
[1731849368579,0.00056001,90824.0,90823.0,0.055054]
[1731849368775,0.13193798,90824.0,90823.0,0.055054]
[1731849368985,0.18699198,90824.0,90819.0,0.055056]
[1731849369181,0.0313,90823.0,90819.0,0.055056]
[1731849369380,0.0313,90823.0,90817.0,0.3608]
[1731849369576,0.055057,90818.0,90817.0,0.3608]
[1731849370181,0.086355,90823.0,90818.0,0.055057]
[1731849370484,0.0313,90823.0,90821.0,0.055055]
[1731849370874,0.00010992,90826.0,90825.0,0.055053]
[1731849371280,0.00010992,90826.0,90825.0,0.415853]
[1731849372790,0.13137797,90836.0,90834.0,0.055048]
[1731849373087,0.13137797,90837.0,90836.0,0.055047]
[1731849373382,0.13137797,90843.0,90840.0,0.055044]
[1731849373586,0.05504,90847.0,90842.0,0.055043]
[1731849373775,0.05504,90847.0,90835.0,0.3608]
[1731849373776,0.13151589,90845.0,90835.0,0.3608]
[1731849373980,0.13151589,90845.0,90843.0,0.055042]
[1731849374287,0.00013997,90845.0,90843.0,0.055042]
[1731849375095,0.05518097,90845.0,90843.0,0.055042]
[1731849375692,0.00013997,90845.0,90843.0,0.055042]
[1731849377192,0.00013997,90845.0,90841.0,0.08596]
[1731849377193,0.05518097,90845.0,90841.0,0.08596]
[1731849377488,0.05518097,90845.0,90842.0,0.055043]
[1731849377879,0.05518097,90845.0,90841.0,0.08596]
[1731849378085,0.05518097,90845.0,90843.0,0.055042]
[1731849378791,0.08688097,90845.0,90843.0,0.055042]
[1731849379291,0.03183997,90845.0,90843.0,0.055042]
[1731849380091,0.08688097,90845.0,90843.0,0.055042]
[1731849381392,0.18645749,90844.0,90839.0,0.3608]
[1731849381591,0.055042,90843.0,90839.0,0.3608]
[1731849381887,0.055042,90843.0,90840.0,0.055044]
[1731849382100,0.18649982,90843.0,90840.0,0.055044]
[1731849382678,0.055044,90840.0,90839.0,0.3608]
[1731849384380,0.18650182,90840.0,90839.0,0.3608]
[1731849384590,0.055054,90824.0,90823.0,0.3608]
[1731849384787,0.055054,90824.0,90815.0,0.00165166]
[1731849384996,0.055054,90823.0,90819.0,0.055057]
[1731849385184,0.055054,90823.0,90815.0,0.00165166]
[1731849385384,0.055054,90823.0,90820.0,0.055056]
[1731849385983,0.055054,90823.0,90821.0,0.055055]
[1731849387186,0.13147377,90824.0,90815.0,0.00165166]
[1731849387389,0.13147377,90824.0,90822.0,0.055055]
[1731849388390,0.13147377,90823.0,90822.0,0.055055]
[1731849388594,0.13147377,90824.0,90822.0,0.055055]
[1731849389195,0.19454335,90829.0,90828.0,0.055051]
[1731849389990,0.16434335,90829.0,90828.0,0.415851]
[1731849391998,0.16434335,90829.0,90828.0,0.446751]
[1731849392298,0.16434335,90829.0,90828.0,0.64426945]
[1731849392490,0.16434335,90829.0,90828.0,0.446751]
[1731849393300,0.16434335,90829.0,90828.0,0.415851]
[1731849393593,0.16434335,90829.0,90828.0,0.5259486]
[1731849393792,0.16434335,90829.0,90828.0,0.8562286]
[1731849394001,0.00523997,90845.0,90844.0,0.055042]
[1731849394200,0.00523997,90845.0,90844.0,0.415842]
[1731849394201,0.00013997,90845.0,90844.0,0.415842]
[1731849395392,0.00013997,90845.0,90844.0,0.776642]
[1731849396105,0.00013997,90845.0,90844.0,0.055042]
[1731849396288,0.00013997,90845.0,90842.0,0.3608]
[1731849396289,0.055042,90844.0,90842.0,0.3608]
[1731849397004,0.00013997,90845.0,90843.0,0.055042]
[1731849397797,0.05518097,90845.0,90843.0,0.055042]
[1731849400192,0.05518097,90845.0,90837.0,0.3608]
[1731849400193,0.055044,90841.0,90837.0,0.3608]
[1731849400495,0.00013997,90845.0,90838.0,0.055045]
[1731849400693,0.055045,90839.0,90837.0,0.3608]
[1731849400902,0.0316,90838.0,90837.0,0.3608]
[1731849401091,0.0626,90838.0,90837.0,0.3608]
[1731849401498,0.19426163,90838.0,90837.0,0.3608]
[1731849402605,0.0626,90838.0,90837.0,0.3608]
[1731849403891,0.0626,90838.0,90822.0,0.26359458]
[1731849403892,0.055051,90828.0,90824.0,0.19774586]
[1731849404197,0.055051,90828.0,90820.0,0.41709331]
[1731849404198,0.055051,90828.0,90820.0,0.02203082]
[1731849404502,0.13166783,90824.0,90823.0,0.055054]
[1731849404693,0.055051,90828.0,90823.0,0.055054]
[1731849404894,0.13166672,90824.0,90823.0,0.055054]
[1731849405096,0.13165538,90824.0,90821.0,0.055056]
[1731849405294,0.13165538,90824.0,90823.0,0.055054]
[1731849406094,0.13165538,90825.0,90823.0,0.055054]
[1731849406299,0.13165538,90824.0,90823.0,0.055054]
[1731849407098,0.055053,90826.0,90823.0,0.055054]
[1731849407300,0.16446179,90830.0,90823.0,0.055054]
[1731849407495,0.055053,90825.0,90823.0,0.055054]
[1731849408505,0.0307,90837.0,90818.0,0.055057]
[1731849408506,0.055056,90821.0,90818.0,0.055057]
[1731849408803,0.13163267,90819.0,90818.0,0.055057]
[1731849409107,0.13163267,90819.0,90817.0,0.3608]
[1731849409310,0.0312,90818.0,90817.0,0.3608]
[1731849413507,0.13158457,90826.0,90817.0,0.3608]
[1731849413700,0.13158457,90831.0,90817.0,0.3608]
[1731849413902,0.05505,90830.0,90823.0,0.055054]
[1731849414206,0.05505,90830.0,90817.0,0.3608]
[1731849414512,0.05505,90830.0,90825.0,0.055053]
[1731849414902,0.13158457,90831.0,90829.0,0.055051]
[1731849415105,0.13158457,90831.0,90826.0,0.3608]
[1731849415408,0.055051,90830.0,90823.0,0.055054]
[1731849416134,0.0322,90833.0,90817.0,0.415858]
[1731849416135,0.055053,90825.0,90817.0,0.415858]
[1731849416298,0.0307,90824.0,90817.0,0.61360386]
[1731849416706,0.0307,90824.0,90817.0,0.415858]
[1731849416904,0.0307,90824.0,90820.0,0.055056]
[1731849417503,0.0307,90824.0,90822.0,0.055055]
[1731849419614,0.16378457,90833.0,90828.0,0.055051]
[1731849419805,0.0322,90833.0,90831.0,0.055049]
[1731849420613,0.0305,90836.0,90830.0,0.3608]
[1731849420914,0.0305,90836.0,90835.0,0.055047]
[1731849421514,0.0312,90843.0,90842.0,0.055043]
[1731849421908,0.00013997,90845.0,90844.0,0.055042]
[1731849426018,0.00013997,90845.0,90838.0,0.55854586]
[1731849426422,0.13158457,90844.0,90839.0,0.055045]
[1731849426614,0.13158457,90843.0,90839.0,0.055045]
[1731849426922,0.13158457,90840.0,90830.0,0.3608]
[1731849427123,0.13158457,90837.0,90830.0,0.3608]
[1731849427332,0.13158457,90832.0,90830.0,0.3608]
[1731849427619,0.055049,90832.0,90830.0,0.3608]
[1731849428720,0.055049,90832.0,90819.0,0.3608]
[1731849428721,0.055053,90826.0,90819.0,0.3608]
[1731849428919,0.13162085,90825.0,90819.0,0.3608]
[1731849429116,0.13162085,90822.0,90819.0,0.3608]
[1731849429319,0.13162085,90820.0,90818.0,0.055057]
[1731849429518,0.19402085,90819.0,90818.0,0.055057]
[1731849429720,0.0624,90819.0,90818.0,0.055057]
[1731849430017,0.0624,90819.0,90815.0,0.36245166]
[1731849430324,0.055058,90817.0,90815.0,0.00165166]
[1731849430822,0.13162085,90816.0,90815.0,0.00165166]
[1731849431023,0.055058,90817.0,90815.0,0.00165166]
[1731849432420,0.16452794,90816.0,90806.0,0.3608]
[1731849432620,0.055063,90809.0,90806.0,0.3608]
[1731849433516,0.055064,90808.0,90806.0,0.3608]
[1731849437919,0.05487121,90810.0,90801.0,0.055067]
[1731849438224,0.055067,90803.0,90800.0,0.1]
[1731849438423,0.0317,90802.0,90800.0,0.1]
[1731849438645,0.0051,90817.0,90808.0,0.055063]
[1731849438826,0.09132,90809.0,90800.0,0.1]
[1731849439127,0.055066,90805.0,90800.0,0.1]
[1731849439425,0.09132,90810.0,90801.0,0.055068]
[1731849439832,0.09132,90810.0,90807.0,0.055064]
[1731849440023,0.09132,90810.0,90805.0,0.3608]
[1731849440219,0.3608,90809.0,90800.0,0.1]
[1731849440419,0.055068,90801.0,90800.0,0.1]
[1731849443238,0.11025701,90801.0,90800.0,0.1]
[1731849443533,0.055068,90801.0,90800.0,0.1]
[1731849444339,0.055068,90801.0,90800.0,0.155068]
[1731849445734,0.05452216,90805.0,90804.0,0.055066]
[1731849445936,0.00056001,90808.0,90804.0,0.3608]
[1731849446232,0.00056001,90808.0,90807.0,0.055064]
[1731849446233,0.055063,90808.0,90807.0,0.055064]
[1731849446435,0.05506,90814.0,90812.0,0.055061]
[1731849447833,0.094,90819.0,90813.0,0.3608]
[1731849448135,0.20521047,90819.0,90815.0,0.055059]
[1731849448935,0.17361047,90819.0,90816.0,0.055058]
[1731849449438,0.13151136,90822.0,90818.0,0.055057]
[1731849449830,0.13151136,90822.0,90821.0,0.055056]
[1731849450032,0.13151136,90822.0,90821.0,0.415856]
[1731849450727,0.13151136,90822.0,90821.0,0.3608]
[1731849452145,0.18656636,90822.0,90821.0,0.3608]
[1731849454239,0.055056,90821.0,90808.0,0.055063]
[1731849454441,0.13151136,90822.0,90800.0,0.29726704]
[1731849454442,0.3608,90818.0,90800.0,0.29726704]
[1731849454645,0.055065,90806.0,90800.0,0.1]
[1731849454940,0.055065,90806.0,90800.0,0.29726704]
[1731849455331,0.055065,90806.0,90804.0,0.055066]
[1731849455644,0.055064,90808.0,90806.0,0.055065]
[1731849456342,0.13151136,90814.0,90802.0,0.19726704]
[1731849456528,0.0306,90817.0,90800.0,0.1]
[1731849456529,0.13151136,90803.0,90800.0,0.1]
[1731849456732,0.13151136,90804.0,90800.0,0.1]
[1731849457033,0.0051,90814.0,90800.0,0.1]
[1731849457034,0.18657836,90802.0,90800.0,0.1]
[1731849457434,0.13151136,90801.0,90800.0,0.1]
[1731849457852,0.055067,90802.0,90800.0,0.1]
[1731849459545,0.11026281,90802.0,90800.0,0.1]
[1731849459741,0.055067,90802.0,90800.0,0.1]
[1731849460537,0.2194562,90802.0,90800.0,0.1]
[1731849460737,0.1643892,90801.0,90800.0,0.1]
[1731849460941,0.055067,90802.0,90800.0,0.1]
[1731849462950,0.16492726,90801.0,90800.0,0.1]
[1731849463650,0.055067,90802.0,90800.0,0.1]
[1731849465047,0.055067,90802.0,90800.0,0.155068]
[1731849475154,0.13192647,90801.0,90800.0,0.155068]
[1731849475544,0.055067,90802.0,90800.0,0.155068]
[1731849476447,0.13192698,90801.0,90800.0,0.155068]
[1731849476650,0.13192698,90802.0,90800.0,0.155068]
[1731849477057,0.13192698,90803.0,90802.0,0.055067]
[1731849477357,0.13192698,90803.0,90800.0,0.1]
[1731849477358,0.13192411,90803.0,90800.0,0.1]
[1731849477657,0.055067,90802.0,90800.0,0.1]
[1731849480158,0.08777928,90810.0,90800.0,0.1]
[1731849480159,0.13193259,90804.0,90802.0,0.055067]
[1731849480355,0.055065,90806.0,90802.0,0.055067]
[1731849480356,0.13193259,90805.0,90802.0,0.055067]
[1731849480556,0.08777928,90810.0,90802.0,0.055067]
[1731849480557,0.18699859,90804.0,90802.0,0.055067]
[1731849480767,0.13193259,90803.0,90802.0,0.055067]
[1731849481145,0.18699859,90804.0,90802.0,0.055067]
[1731849481348,0.13193259,90803.0,90802.0,0.055067]
[1731849481653,0.055066,90804.0,90802.0,0.055067]
[1731849481954,0.13204137,90803.0,90802.0,0.25233404]
[1731849482149,0.055066,90804.0,90802.0,0.055067]
[1731849482665,0.055066,90804.0,90803.0,0.19726704]
[1731849482955,0.055066,90804.0,90802.0,0.25233404]
[1731849483352,0.055066,90804.0,90803.0,0.19726704]
[1731849483553,0.055066,90804.0,90802.0,0.055067]
[1731849483758,0.16492726,90805.0,90804.0,0.055066]
[1731849484058,0.16492726,90808.0,90802.0,0.26302272]
[1731849484359,0.16492726,90809.0,90805.0,0.055065]
[1731849484555,0.16492726,90808.0,90805.0,0.31808772]
[1731849484754,0.16492726,90808.0,90805.0,0.055065]
[1731849485053,0.21999026,90809.0,90805.0,0.31808772]
[1731849485257,0.16492726,90809.0,90807.0,0.055064]
[1731849485553,0.16492726,90809.0,90808.0,0.3608]
[1731849485746,0.16492726,90812.0,90811.0,0.055062]
[1731849486158,0.16492726,90816.0,90810.0,0.26302272]
[1731849486461,0.16492726,90816.0,90808.0,0.36196]
[1731849486462,0.13213391,90814.0,90813.0,0.31932095]
[1731849486645,0.16492726,90819.0,90813.0,0.31932198]
[1731849486850,0.21998426,90818.0,90816.0,0.19820098]
[1731849487148,0.055059,90816.0,90815.0,0.19820098]
[1731849487352,0.055059,90816.0,90809.0,0.1981411]
[1731849487353,0.05356349,90816.0,90809.0,0.1981411]
[1731849487553,0.055062,90810.0,90808.0,0.1981411]
[1731849487862,0.055063,90808.0,90807.0,0.1981411]
[1731849488048,0.055063,90808.0,90806.0,0.1981411]
[1731849488249,0.055063,90808.0,90807.0,0.1981411]
[1731849488457,0.13209529,90808.0,90806.0,0.3608]
[1731849488648,0.13209529,90811.0,90809.0,0.055063]
[1731849488849,0.13209529,90812.0,90811.0,0.055062]
[1731849489049,0.13209529,90813.0,90811.0,0.055062]
[1731849489359,0.13209529,90814.0,90813.0,0.05506]
[1731849489558,0.13209529,90814.0,90813.0,0.25314656]
[1731849489861,0.0307,90820.0,90815.0,0.055059]
[1731849489862,0.13209529,90816.0,90815.0,0.055059]
[1731849490062,0.13209529,90816.0,90815.0,0.25314363]
[1731849490263,0.13209529,90817.0,90815.0,0.25314363]
[1731849491170,0.00165214,90821.0,90820.0,0.055056]
[1731849491361,0.00165214,90821.0,90820.0,0.25302577]
[1731849491552,0.00165214,90821.0,90820.0,0.055056]